{"text_format":"1","workbook":"xlsx","n_sheets":11,"sheets":["Nápověda","Util","Funkce","Přepočet","Paliva","Schemata","Disoc","Trubkovnice","DisData","DisData1","DisPopis"],"not_rendered":{"charts":0,"images":49,"macros":1,"external_links":1,"defined_names":6,"comments":5,"pivot_tables":0},"unopened":[],"bounds":{"document_bytes":16777216,"sheet_cells":100000,"rows_first":2000,"rows_last":500,"rows_between":2000,"halvings":0,"cell_chars":16384,"cell_head_chars":4096},"cells_cut":0,"cells_raw":0,"read":"whole","date_system":"1900"}

{"sheet":"Nápověda","index":0,"n_rows":195,"n_cols":9,"rows_kept":195,"cut":false,"hidden":false,"merged":[[24,4,24,5]]}
["Stechiometrické a bilanční výpočty"]
[]
["Jako doplněk .xla  slouží k usnadnění stechiometrických a bilančních výpočtů"]
["Spusťe nejdříve stechiom.xla a ve vašem sešitu můžete provádět stechiometrické výpočty pomocí  funkcí (VBA makra). Lze kombinovat s FYDEXem."]
["Umožní vám na zvláštním listě i přepočet cizích a méně obvyklých fyzikálních jednotek a také poskytne základní aparáty pro kreslení stručných technol. schemat."]
[]
[]
["=MH(\"H2SO4\")        výpočet molekulové hmotnosti po zadání vzorce"]
["=MH(\"H2SO4\")","dává",9.8079479999999997E-2,"včetně krystalické vody: =MH(\"Na2SO4.10H2O\")",null,null,null,null," Default rozměr (kg/mol), ale možno přepínat voláním fce s argumenty:"]
["=MH(\"(NH4)2SO4\")",null,0.1321406,"včetně závorek, síran amonný  jako: =MH(\"(NH4)2SO4\")",null,null,null,null,"   =MH(\"*G\") nebo =MH(\"*g\") přepne na (g/mol) (první případ vrátí rozměr)"]
["=MH(\"HCl  to je kys. chlorovodíková\")",null,3.6460639999999996E-2,"Pokud je vzorec v buňce (G4) vypadá volání jako =MH(G4)",null,null,null,null,"   =MH(\"*KG\") nebo =MH(\"*kg\") přepne na (kg/mol) (první případ vrátí rozměr)"]
[null,null,null,"mezera ukončuje další vyhodnocování, co je za ní se ignoruje!",null,null,null,null,"   toto přepnutí zapisujte nejdříve, aby nebyly problémy s přepočtem buněk."]
["Na2SO4.10H2O","=MH(A10)",0.32219593600000002,null,null,null,null,null," Pokud je výsledek záporný nebo nula, nebylo zadání vzorce korektní."]
[]
["=Stech(x; půvlatka; novalatka)     Přepočet množství jedné reagující látky na druhou, uměrou mol.hmotností"]
["=Stech(1;\"NaOH\";\"Na2SO4\")","dává",3.5513351615321787,"x - množství původní látky"]
["=Stech(2;24;65)",null,5.416666666666667,"půvlatka - vzorec původní látky (nebo i číslo mol. hmotnosti)"]
[null,null,null,"novalatka - vzorec látky na kterou přepočítáváme"]
[]
["Příklad:","H2SO4 ","+","2.NH3","=","(NH4)2SO4",null,"lze i","=Stech(1;\"C2H4\";\"C2H3Cl\")"]
["M.H.(kg/mol)",9.8079479999999997E-2,"=MH(B17)",3.406112E-2,"=MH(D17)",0.1321406,"=MH(F17)"]
["množství",2.2999999999999998,null,0.79874583348117256,"=Stech(B19;B17;D17)",3.0987458334811722,"=Stech($B$19;$B$17;F17)"]
[null,null,null,0.79874583348117256,"=B19*D18/B18",3.0987458334811722,"=B19*F18/B18"]
["Pozn.:  násobné množství molekul lze dávat jako číslici a tečku (bez mezer!!!)"]
["Maticové přepočty složení:",null,null,null,"maticové vzorce",null,"Zadávají se stiskem Ctrl+Shft+Enter  { } dodá sám systém!"]
[null,"mol.hm.","hmot. sl.",null,"mol.sl.","hmot.sl"]
["=MH(\"C2H4\")",2.8053759999999997E-2,1,null,{"$f":"C27/B27/SUM($C$27:$C$29/$B$27:$B$29)","v":0.21913910930822236},{"$f":"E27*B27/SUM($E$27:$E$29*$B$27:$B$29)","v":0.25},"{=E24*B24/SUMA($E$24:$E$26*$B$24:$B$26)}"]
["=MH(\"C2H3Cl\")",6.2498519999999995E-2,1,null,{"$f":"C28/B28/SUM($C$27:$C$29/$B$27:$B$29)","v":9.836514495297867E-2},{"$f":"E28*B28/SUM($E$27:$E$29*$B$27:$B$29)","v":0.25000000000000006}," maticový vzorec je jen v jedné buňce!"]
["=MH(\"H2O\")",1.8015280000000002E-2,2,null,{"$f":"C29/B29/SUM($C$27:$C$29/$B$27:$B$29)","v":0.6824957457387989},{"$f":"E29*B29/SUM($E$27:$E$29*$B$27:$B$29)","v":0.5}]
[null,null,null,null,{"$f":"SUM(E27:E29)","v":1},{"$f":"SUM(F27:F29)","v":1}]
[null,null,null,null,"{=C24/B24/SUMA($C$24:$C$26/$B$24:$B$26)}"]
[]
["=KoncKriz( n1;  n2;  n; Optional  m)        míšení roztoků",null,null,null,"(Optional znamená nepovinné)"]
[null," n1 je první koncentrace; n2 druhá koncentrace; n požadovaná koncentrace"]
["=MH()"," Funkce vrací poměr dílů roztoku 1 ku 1 dílu roztoku 2, který třeba smísit"]
["=Stech(1;\"?\";1)","Je-li zadáno m - požadované množství výsledného roztoku, tak je třeba volat"]
["=Stech(\"?\";1;1)","maticově: 1.ř množ. 1; 2.ř množ. 2; 3.ř. poměr 1:2"]
["dává Help","zadá-li se m záporně, zobrazuje výsledky do sloupců"]
[]
[null,"Příprava roztoku:",null,null,"=KoncKriz ( n1,  n2,  n, Optional  m)"]
["poměr 1:2","=konckriz(B39;B40;B41)",null,"množství 1",24.6,24.6,5.4,4.5555555555555554]
["konc. n1",1.5,null,"množství 2",5.4,"=konckriz(1,5;0;0,27;-$E$41)"]
["konc. n2",0,null,"poměr 1 : 2",4.5555555555555554]
["požad. konc. n",0.27,null,"celk.množství",30]
[]
[]
["=Mixer_2( m1; x1;  m2; x2; Optonal horiz)      smíšení dvou proudů"]
["m1  tok a x1 složení prvního proudu; m2  tok a x2 složení druhého proudu"]
["Oba proudy musí mít identické složky"]
["Funkce je maticová na n+1 řádků, kde n je počet složek směsi (když horiz=1, zobrazí do sloupců)"]
["1. řádek m celkový tok; další řádky složení výsledného proudu x "]
[]
[null,"m","x","{=Mixer_2($B$51;$C$51:$C$52;$B$53;$C$53:$C$54)}"]
[null,4,0.15,10]
[null,null,0.85,0.42]
[null,6,0.6,0.57999999999999996]
[null,null,0.4]
[]
["=Rovnice(Rov As String; Optional xvol)"]
[" Najde koeficienty stechiometrické chemické rovnice a doplní je do rovnice"]
[" Volitelný parametr xvol, představuje koef. u prvního reaktantu (je-li vynechán, tak je roven jedné)"]
[" Zadej. např.:  C2H4 + HCl + O2 = C2H4Cl2 + H2O  (začněte složitější sloučeninou pokud možno s více prvky)"]
[" Pokud se volá maticově tak v řádcích 2. až N+1 vrací N stech. koeficientů složek a"]
[" případně v dalších N řádcích vzorec reaktantu"]
["=Rovnice(\"C2H4 + HCl + O2 = C2H4Cl2 + H2O\")",null,null,null,"vrátí ","C2H4 + 2HCl + 0,5O2 = C2H4Cl2 + H2O"]
["=Rovnice(\"C2H4 + HCl + O2 = C2H4Cl2 + H2O\";2)",null,null,null,"maticově","2C2H4 + 4HCl + O2 = 2C2H4Cl2 + 2H2O"]
["=Rovnice(\"CH2CH2 + HCl + O2 = CH2ClCHCl2 + H2O\";2)",null,null,null,null,2]
[null,null,null,null,null,4]
[null,null,null,null,null,1]
[null,null,null,null,null,2]
[null,null,null,null,null,2]
[null,null,null,null,null,"C2H4"]
[null,null,null,null,null,"HCl"]
[null,null,null,null,null,"O2"]
[null,null,null,null,null,"C2H4Cl2"]
[null,null,null,null,null,"H2O"]
[]
["=GAUSS(A_; Optional N; Optional NCOL)  řešení soustavy lin. rovnic"]
["Gaussovou eliminací s výběrem maximálního prvku ve sloupci"]
["Rozšířená matice soustavy je v A_(N,N+NCOL), zadá se jako rozmezí buněk. Pravé strany v posledním sloupci. Pravých stran může být i více."]
["N je počet rovnic; NCOL je počet pravých stran; není-li zadáno zjistí se z rozsahu"]
["dimenzováno na max. 20 rovnic; volá se maticově (Ctrl+Shft+Enter) na tolika řádcích, co je neznámých"]
[]
[]
["=UtilCena(Optional  i As Integer)"]
["Vrací cenu utility. Pokud se volá bez parametru, což je většinou, (=UtilCena()), tak nabídne výběr utility z combo boxu"]
["Vrátí cenu v Kč za obvyklou jednotku. Nevolejte tyto funkce z pomocníka fx ale když tak z volby v menu STECHIOM."]
["Zahrnuje paliva, vody, dusík, vzduch.Vložit cenu utility na místo kursoru docílíte z menu STECHIOM."]
[]
["=UtilCena3(Optional  i As Integer)"]
["Vložení informace o utilitě do 3 buněk na řádku - 1.název, 2.jednotka, 3. cena (Kč). Stejného efektu docílíte na polohu kurzoru volbou z menu STECHIOM."]
["Pokud se volá bez parametru, což je většinou, (=UtilCena3()), tak nabídne výběr utility z combo boxu. Nevolejte tyto funkce z pomocníka fx."]
["Příklad:"]
["voda cirkulační CV II","1000Nm3 ",789.8599853515625]
[]
["=naMol(ByVal m; ByVal Vzor)"]
["Převede látkové množství m (kg) látky Vzor na moly. Na př. =naMol(12,5;\"C2H5OH\")"]
["Místo vzorce lze dosadit i přímo molekulovou hmotnost (kg/mol)."]
[]
["=zMol(ByVal m; ByVal Vzor)"]
["Převede m molů látky Vzor na  látkové množství (kg). Na př. =zMol(12,5;\"C2H5OH\")"]
["Místo vzorce lze dosadit i přímo molekulovou hmotnost (kg/mol)."]
[]
["=HustIdG(Vzor; T ; Optional P)       hustota (kg/m3) ideálního plynu látky Vzor za teploty T(°C) a tlaku P (Pa)."]
[]
["=AdiabT(n; T0; P0; P)      teplota adiabatické komprese na tlak P (Pa); T(°C)"]
["n je adiabatický nebo polytropický koef.; T0, P0 výchozí stav.  =AdiabT(1,25;60;101325;250000)  (dává 126 °C)"]
[]
["=AdiabP(n; T0; P0; T)      teplota adiabatické komprese na tlak P (Pa); T(°C)"]
["n je adiabatický nebo polytropický koef.; T0, P0 výchozí stav.  =AdiabP(1,25;60;101325;150) (dává 334 957 Pa)"]
[]
["=AdiabPkr( n; Optional  P0)   výpočet adiab. krit tlaku pro výtok Pkr(Pa) k výchozímu tlaku P0"]
["n je adiabatický nebo polytropický koef.; není-li zadáno P0 počítá krit. poměr tlaků;  =AdiabPkr(1,25)  dává 0,5549"]
[]
["=wDyzaKr(Vzor;  n;  T)   kritická rychlost v dýze (m/s), Vzor vzorec látky nebo mol.hm.; T(°C)"]
["n je adiabatický nebo polytropický koef.;  Vzor je vzorec látky nebo Mv směsi;  =wDyzaKr(\"C2H4\";1,25;60)  dává 331,2"]
[]
["=wDyza(Vzor;  n;  T; P; P0)   rychlost v dýze (m/s) při rozdílu tlaků, Vzor vzorec látky nebo mol.hm."]
["n je adiabatický nebo polytropický koef.; Vzor je vzorec látky nebo Mv směsi;   =wDyza(\"C2H4\";1,25;60;150000;100000)  dává 277,3"]
[]
["=AdiabMkr( Vzor;  n;  T;  P)   výpočet max. kritického toku plynu (kg/s/m2)dýzou, T(°C), P(Pa)"]
["n je adiabatický nebo polytropický koef.; Vzor je vzorec látky nebo Mv směsi;   =AdiabMkr(\"C2H4\";1,25;60;150000)  dává 314,1"]
[]
[]
[]
[]
[]
["=AdiabW( Vzor;  n;  T0;  P0;  P)    adiabatická (polytropická) práce; T(°C), P(Pa) (J/kg)"]
["n je adiabatický nebo polytropický koef.; Vzor je vzorec látky nebo Mv směsi;  "]
[]
[]
[]
[]
["=Element(Prvek; Sloucenina)      počítá hmot. obsah prvku v sloučenině (vrací desetinné číslo, lze pak zvolit formát procenta)"]
["Prvek je textové vyjádření prvku nebo i chemické skupiny (NO3 apod.); Sloucenina textový vzorec sloučeniny v níž obsah stanovujeme"]
[]
["=Element_max(Prvek; Sloucenina1; Sloucenina2)      vrací vzorec sloučeniny s vyšším hmot. obsahem prvku v sloučenině "]
["Prvek je textové vyjádření prvku nebo i chemické skupiny (NO3 apod.); Sloucenina1, 2 textový vzorec sloučenin v níchž obsah porovnáváme"]
["=Element_max(\"Na\";\"Na2SO4\";\"NaCl\") vrací NaCl"]
[]
["=PrevodSI(tx)       převede hodnotu s rozměrem odděleným od čísla mezerou do základních jednotek SI"]
["Argumetem může být řetězec nebo odkaz na buňku s příslušným obsahem. Např.:  2,52 Btu/lb/°F nebo 35 km/h"]
["Chcete-li vložit dostupné rozměry a převodní faktory do SI na pozici kursoru spusťe tuto činnost znabídky STECHIOMETRIE (Doplňky)"]
[]
["=PrevodEN(x, tx)       převede hodnotu x v SI do rozměru obsaženém v řetězci  tx."]
["Prvním argumentem je číselná hodnota v základních jednotkách SI v proměnné jako odkaz na buňku nebo i konstanta."]
["Druhým argumentem je textový řetězec s rozměrem do kterého chceme číslo převést. Je to opačná funkce k PrevodySI"]
["Příklad použití: =PrevodEN(C7, \"Btu/lb/°F)   nebo  =PrevodEN(1245,8, \"g/cm3\")"]
["Chcete-li vložit dostupné rozměry a převodní faktory z SI na pozici kursoru spusťe tuto činnost znabídky STECHIOMETRIE (Doplňky)"]
[]
[]
["Jak aktualizovat ceny utilit, přehled funkcí nebo přidat schémata ?"]
["Tyto údaje jsou v doplňku jako skryté listy. Zpřístupníte je následnovně:"]
["Zavřete všechny otevřené sešity a pomocí Alt F11 přejděte do režimu VBA"]
["U souboru Stechiometrie (stechiom.xla) (vlevo nahoře) rozbalte volbu Microsoft Excel Objects, aby byl přístupný Tento_sešit"]
["Když kliknete na Tento_sešit, tak se v okně Properties (přímo níže) objeví řada vlastností"]
["Najděte volu IsAddIn. Má u doplňku hodnotu True"]
["Kliknutím na True ji změnte na False a od té doby  je aplikace normálním sešitem se všemi přístupnými listy"]
["Klikněte na ikonku Excelu (X, je úplně vlevo na liště nástrojů, šikmo pod nápisem File) nebo znovu stiskněte Alt F11 a vrátíte se do sešitu"]
["Nyní aktualizujte data v listech Util, Funkce, Schemata případně dalších"]
["Pak znovu přepněte do VBA pomocí Alt F11 a klikněte na Tento_sešit"]
["Ve vlastnostech najděte volu IsAddIn a změnte ji opět na True"]
["Nezapomeňte uložit opravený dopněk volbou File/Save stechiom.xla nebo Ctrl+S nebo klinutím na ikonce diskety na liště nástrojů."]
[]
[]
["Použití zobrazení trubkovnice"]
[]
["Po spuštění volby nejprve zadejte všechny základní parametry trubkovnice."]
["Roztečemi se myslí rozdíl středů trubek a to jednak v řadě (napříč) a jednak mezi"]
["jednotlivými řadami trubek (podél). Všechny parametry se zadávají v milimetrech."]
["Relativní diference u obvodu říká jaká část rozteče se má vynechat u obvodu "]
["trubkovnice, aby trubky nesahaly až k obvodu."]
["Parametry Počet řad trubek, Počet trubek a Počet trubek ve středové řadě se"]
["nezadávají ale jsou výsledkem výpočtu."]
["Výpočet a vykreslení trubkovnice se spouští klávesovou zkratkou Ctrl K "]
["Smazání vykreslené trubkovnice docílíte klávesovou zkratkou  Ctrl M "]
[]
["Vynechání určených řad trubek:      ( po vykreslení všech řad )"]
["Stiskěte Ctrl+U a zadejte čísla řad k vynechání oddělená čárkami"]
[]
["nebo i starší způsob zadávání:"]
["a)  na 12. řádku od první pozice zadejte záporně číslo řad, které chcete vynechat"]
["     a to postupně do následujících buněk na řádku; např. -3    -8     -15  vynechá"]
["     třetí, osmou a patnáctou řadu (nevykreslí ji). Spustíte nové vykreslení Ctrl K."]
[]
["b)  kliknete levým tlačítkem myši na první trubce řady, kterou chcete vynechat,"]
["     zcela vlavo nahoře se na stavovém řádku objeví typ objektu s číslem,"]
["     většinou  např. elipsa143. Toto číslo si zapamatujete a vkládáte ho kladně"]
["     do buněk na 12. Řádku. Tímto postupem můžete také vynechat více řad."]
["     Pro ovětné vykreslení s vynecháním stiskněte Ctrl K."]
[]
["Pozn.:   Po vykreslení s vynecháním způsobí opakované stisknutí Ctrl K"]
["            nové vykreslení ale plné se všemi řadami trubek!"]
[]
["Hotový nástin vytiskněte nebo uložte jako standardní list Excelu."]

{"sheet":"Util","index":1,"n_rows":20,"n_cols":3,"rows_kept":20,"cut":false,"hidden":false,"merged":[]}
["Ceny utilit"]
["k roku:",2008]
[]
["Název","Jednotka","Cena"]
["elektřina","MWh",1714.86]
["pára 0,3 MPa","GJ",195.57]
["pára 1,0 MPa","GJ",188]
["pára 2,1 MPa","GJ",210.5]
["uhlí","t",735]
["topný olej","t",8500]
["vodík","1000 Nm3 ",1400]
["zemní plyn","1000 Nm3 ",7350]
["voda cirkulační CV I","1000 Nm3 ",524.94000000000005]
["voda cirkulační CV II","1000 Nm3 ",930.93]
["voda filtrovaná","1000 Nm3 ",3988.21]
["voda demineralizovaná","1000 Nm3 ",28127.3]
["voda pitná","1000 Nm3 ",20500.52]
["voda napájecí","1000 Nm3 ",114970.29]
["dusík","1000 Nm3 ",1826.65]
["vzduch tlakový ","1000 Nm3 ",417.65]

{"sheet":"Funkce","index":2,"n_rows":24,"n_cols":1,"rows_kept":24,"cut":false,"hidden":false,"merged":[]}
["Přehled funkcí"]
[]
["=MH(\"H2SO4\")        výpočet molekulové hmotnosti po zadání vzorce"]
["=Stech(x; půvlatka; novalatka)     Přepočet množství jedné reagující látky na druhou; uměrou mol.hmotností"]
["=KoncKriz( n1;  n2;  n; Optional  m)        míšení roztoků"]
["=Mixer_2( m1; x1;  m2; x2; Optonal horiz)      smíšení dvou proudů"]
["=Rovnice(Rov As String; Optional xvol)  Najde koeficienty stechiometrické chemické rovnice a doplní je do rovnice"]
["=GAUSS(A_; Optional N; Optional NCOL)  řešení soustavy lin. rovnic"]
["=UtilCena(Optional  i As Integer)  Vrací cenu utility. Pokud se volá bez parametru,  tak nabídne výběr utility z combo boxu"]
["=UtilCena3(Optional  i As Integer)   Vložení informace o utilitě do 3 buněk na řádku - 1.název, 2.jednotka, 3. cena (Kč)"]
["=naMol( m;  Vzor)   Převede látkové množství m (kg) látky Vzor na moly."]
["=zMol( m;  Vzor)   Převede m molů látky Vzor na  látkové množství (kg)"]
["=HustIdG(Vzor; T ; Optional P)       hustota (kg/m3) ideálního plynu látky Vzor za teploty T(°C) a tlaku P (Pa)."]
["=AdiabT(n; T0; P0; P)    teplota adiab. komprese na tlak P(Pa) ; T(°C)"]
["=AdiabP(n; T0; P0; T)    tlak adiab. komprese na teplotu T(°C); P(Pa)"]
["=AdiabPkr( n; Optional  P0)   výpočet adiab. krit tlaku pro výtok Pkr(Pa) k výchozímu tlaku P0"]
["=wDyzaKr(Vzor;  n;  T)   kritická rychlost v dýze (m/s), Vzor vzorec látky nebo mol.hm.; T(°C)"]
["=wDyza(Vzor;  n;  T; P; P0)   rychlost v dýze (m/s) při rozdílu tlaků, Vzor vzorec látky nebo mol.hm."]
["=AdiabMkr( Vzor;  n;  T;  P)   výpočet max. kritického toku plynu (kg/s/m2)dýzou, T(°C), P(Pa)"]
["=AdiabW( Vzor;  n;  T0;  P0;  P)    adiabatická (polytropická) práce; T(°C), P(Pa) (J/kg)"]
["=Element(Prvek; Sloucenina)      počítá hmot. obsah prvku v sloučenině (vrací desetinné číslo, lze pak zvolit formát procenta)"]
["=Element_max(Prvek; Sloucenina1; Sloucenina2)      vrací vzorec sloučeniny s vyšším hmot. obsahem prvku v sloučenině"]
["=PrevodSI(hodnota) hodnota obsahuje textově číslo, mezeru a rozměr (1,24 Btu/lb/°F)."]
["=PrevodEN(x, rozmer) x hodnota v zákl. SI jednotkách, rozmer - textově rozměr do kterého převést."]

{"sheet":"Přepočet","index":3,"n_rows":80,"n_cols":5,"rows_kept":80,"cut":false,"hidden":false,"merged":[]}
["Důležité přepočty a konstanty"]
[]
["Univ.plynová konstanta",null,8.3144100000000005,"J.mol-1K-1"]
["Stefan-Boltzmannova k.",null,5.6703199999999999E-8,"W.m-2K-4 "]
["tíhové zrychlení (g)",null,9.8066499999999994,"m.s-2 "]
["rychlost světla ve vakuu",null,299792458,"m.s-1 "]
["Faradayova konstanta",null,96484.56,"C.mol-1 "]
["Avogadrova konstanta",null,6.0220450000000001E+23," mol-1 "]
[]
["Vlož číslo","Jednotka","krát","dává","Výsledek"]
[null,"Hmotnost"]
[null,"lb",0.45358999999999999,"kg",{"$f":"IF(A12>0,A12*C12,\"\")","v":""}]
[null,"oz",2.8340000000000001E-2,"kg",{"$f":"IF(A13>0,A13*C13,\"\")","v":""}]
[null,"ton short",907.18499999999995,"kg",{"$f":"IF(A14>0,A14*C14,\"\")","v":""}]
[null,"ton long",1016.05,"kg",{"$f":"IF(A15>0,A15*C15,\"\")","v":""}]
[null,"Objem"]
[null,"barellUS",0.15898000000000001,"m3 ",{"$f":"IF(A17>0,A17*C17,\"\")","v":""}]
[null,"galUK",4.5399999999999998E-3,"m3 ",{"$f":"IF(A18>0,A18*C18,\"\")","v":""}]
[null,"galUS",3.7799999999999999E-3,"m3 ",{"$f":"IF(A19>0,A19*C19,\"\")","v":""}]
[null,"cu ft",2.8309999999999998E-2,"m3 ",{"$f":"IF(A20>0,A20*C20,\"\")","v":""}]
[null,"cu in",1.6387100000000001E-5,"m3 ",{"$f":"IF(A21>0,A21*C21,\"\")","v":""}]
[null,"Délka"]
[null,"ft",0.30480000000000002,"m",{"$f":"IF(A23>0,A23*C23,\"\")","v":""}]
[null,"in",2.5399999999999999E-2,"m",{"$f":"IF(A24>0,A24*C24,\"\")","v":""}]
[null,"yd",0.91439999999999999,"m",{"$f":"IF(A25>0,A25*C25,\"\")","v":""}]
[null,"míle",1609.34,"m",{"$f":"IF(A26>0,A26*C26,\"\")","v":""}]
[null,"Plocha"]
[null,"sq ft",9.2899999999999996E-2,"m2 ",{"$f":"IF(A28>0,A28*C28,\"\")","v":""}]
[null,"sq in",6.4515999999999998E-4,"m2 ",{"$f":"IF(A29>0,A29*C29,\"\")","v":""}]
[null,"acre",4046.86,"m2 ",{"$f":"IF(A30>0,A30*C30,\"\")","v":""}]
[null,"ar",10,"m2 ",{"$f":"IF(A31>0,A31*C31,\"\")","v":""}]
[null,"ha",10000,"m2 ",{"$f":"IF(A32>0,A32*C32,\"\")","v":""}]
[null,"Síla"]
[null,"poundal",0.13825000000000001,"N",{"$f":"IF(A34>0,A34*C34,\"\")","v":""}]
[null,"lbf",4.4482200000000001,"N",{"$f":"IF(A35>0,A35*C35,\"\")","v":""}]
[null,"kp",9.8066499999999994,"N",{"$f":"IF(A36>0,A36*C36,\"\")","v":""}]
[null,"ton short wt",8896.4,"N",{"$f":"IF(A37>0,A37*C37,\"\")","v":""}]
[null,"ton long wt",9964,"N",{"$f":"IF(A38>0,A38*C38,\"\")","v":""}]
[null,"Energie"]
[null,"cal",4.1867999999999999,"J",{"$f":"IF(A40>0,A40*C40,\"\")","v":""}]
[null,"BTU",1055.79,"J",{"$f":"IF(A41>0,A41*C41,\"\")","v":""}]
[null,"l.atm(fyz)",101.328,"J",{"$f":"IF(A42>0,A42*C42,\"\")","v":""}]
[null,"l.atm(tech)",98.069199999999995,"J",{"$f":"IF(A43>0,A43*C43,\"\")","v":""}]
[null,"kWh",3600000,"J",{"$f":"IF(A44>0,A44*C44,\"\")","v":""}]
[null,"Objem"]
[null,"cu ft/hr",7.8657899999999994E-6,"m3/s",{"$f":"IF(A46>0,A46*C46,\"\")","v":""}]
[null,"cu ft/min",4.7194700000000001E-4,"m3/s",{"$f":"IF(A47>0,A47*C47,\"\")","v":""}]
[null,"galUK/hr",1.2628E-6,"m3/s",{"$f":"IF(A48>0,A48*C48,\"\")","v":""}]
[null,"galUS/hr",1.0515E-6,"m3/s",{"$f":"IF(A49>0,A49*C49,\"\")","v":""}]
[null,"litr/min",1.6666700000000001E-5,"m3/s",{"$f":"IF(A50>0,A50*C50,\"\")","v":""}]
[null,"Rychlost"]
[null,"km/h",0.27777000000000002,"m/s",{"$f":"IF(A52>0,A52*C52,\"\")","v":""}]
[null,"m/min",1.6660000000000001E-2,"m/s",""]
[null,"ft/hr",8.46667E-5,"m/s",""]
[null,"ft/min",5.0800000000000003E-3,"m/s",""]
[null,"ft/sec",0.30480000000000002,"m/s",""]
[null,"mile/hr",0.44703999999999999,"m/s",""]
[null,"knot",0.51444000000000001,"m/s",""]
[null,"Tlak"]
[null,"atm",101325,"Pa",{"$f":"IF(A60>0,A60*C60,\"\")","v":""}]
[null,"at",98066.5,"Pa",""]
[null,"in Hg",3386.38,"Pa",""]
[null,"in H2O",249.089,"Pa",""]
[null,"lbf/sq in",6894.76,"Pa",""]
[null,"lbf/sq ft",47.880299999999998,"Pa",""]
[null,"torr",133.322,"Pa",""]
[null,"mm H2O",9.8066499999999994,"Pa",""]
[null,"Výkon"]
[null,"BTU/sec",1055.07,"W",{"$f":"IF(A69>0,A69*C69,\"\")","v":""}]
[null,"BTU/hr",0.29307,"W",{"$f":"IF(A70>0,A70*C70,\"\")","v":""}]
[null,"cal/s",4.1867999999999999,"W",{"$f":"IF(A71>0,A71*C71,\"\")","v":""}]
[null,"HP",745.7,"W",{"$f":"IF(A72>0,A72*C72,\"\")","v":""}]
[null,"kůň",735.49900000000002,"W",{"$f":"IF(A73>0,A73*C73,\"\")","v":""}]
[null,"Hustota"]
[null,"oz/galUK",6.2360199999999999,"kg/m3 ",{"$f":"IF(A75>0,A75*C75,\"\")","v":""}]
[null,"oz/galUS",748915,"kg/m3 ",""]
[null,"lb/cu ft",16.0185,"kg/m3 ",""]
[null,"lb/galUK",99.776399999999995,"kg/m3 ",""]
[null,"lb/galUS",119.82599999999999,"kg/m3 ",""]
[null,"lb/cu in",27679.9,"kg/m3 ",""]

{"sheet":"Paliva","index":4,"n_rows":32,"n_cols":4,"rows_kept":32,"cut":false,"hidden":false,"merged":[]}
["Paliva a jejich výhřevnosti"]
[]
["Palivo","Jednotka","Výhřevnost MJ","Výhřevnost kWh"]
["vodík","Nm3 ",10.7,2.97]
["vodík","kg",118.9,33.03]
["nafta","kg",42.6,11.83]
["topný olej (těžký)","kg",40.299999999999997,11.19]
["zemní plyn","Nm3 ",34,9.44]
["zemní plyn","kg",43.8,12.17]
["bioplyn","Nm3 ","17 - 25","4,72 - 6,95"]
["bioplyn","kg","14 - 20,6","3,88 - 5,72"]
["dřevo","kg",14.6,4.05]
["sláma","kg",14.2,3.9]
["koks","kg",27.5,7.6]
["černé uhlí","kg",25.1,6.97]
["hnědé uhlí ","kg",15.1,4.1900000000000004]
["propan-butan","Nm3 ",46.1,12.8]
["svítiplyn","Nm3 ",14.5,4.03]
[]
[]
["Minimální účinnosti zdrojů podle vyhl. 151/2001"]
["Palivo","účinnost v %"]
["koks",69]
["černé uhlí",68]
["brikety",67]
["tříděné hnědé uhlí",66]
["netříděné hnědé uhlí",62]
["Lehký topný olej",80]
["zemní plyn",85]
[]
[]
["Ceny paliv lze najít na:","http://www.tzb-info.cz/t.py?t=1&i=3"]

{"sheet":"Schemata","index":5,"n_rows":2,"n_cols":4,"rows_kept":2,"cut":false,"hidden":false,"merged":[]}
["Vzorky schemat",null,null,"Stínování docílíte pomocí pravého tlačítka myši na vzorku: Formát objektu /Barvy a čáry /Barva /Vzhled výplně  "]
[null,null,null,"K spojování aparátů \"čarami\" použijte s výhodou: Kreslení /Automatické tvary /Spojovací čáry "]

{"sheet":"Disoc","index":6,"n_rows":23,"n_cols":10,"rows_kept":23,"cut":false,"hidden":false,"merged":[[13,5,13,6],[13,2,13,3]]}
["Disociace kyselin, zásad a solí",null,null,null,null,"Index rozpustnosti solí"]
[]
["Vyber látku:",null,86,null,null,"Vyber sůl:",null,1]
[]
[]
[]
[]
[]
[]
[]
[]
[]
[]
["Šťavelová (K1)",null,"C2O4H2",null,null,"CaCO3 ",null,null,"Mv (g/mol)"]
["Koncentrace (mol/litr):",null,0.05,null,null,"Koncentrace rozpuštěné soli v nasyceném roztoku"]
["pH =",1.479078021059278,"při T (°C):",25,null,"c  =",6.6858058601787108E-5," (mol/l)",{"$f":"G16*$H$14","v":0},"(g/l)"]
["cH+ =",3.3183483802630552E-2,null,null,null,"cm+ =",6.6858058601787108E-5,1]
["iter, f :",29,1.2585125654523965E-6,null,null,"cn-- =",6.6858058601787108E-5,1]
["pK1 ",1.1870866433571443]
["pK2 ",4.2146701649892329]
["pK3 "]
["Mv (g/mol)"]
["c (g/l) =",{"$f":"C15*B22","v":0},null,{"$f":"IF(D22>\"\",MV(D22),\"\")","v":""}]

{"sheet":"Trubkovnice","index":7,"n_rows":13,"n_cols":2,"rows_kept":13,"cut":false,"hidden":false,"merged":[]}
["Nástin trubkovnice"]
["Průměr pláště (mm)",620]
["Průměr trubky (mm)",20]
["Rozteč středů napříč (mm)",30]
["Rozteč středů podél (mm)",30]
["Uspoř.: 0-zákryt; 1-střídavé",1]
["Poočet řad trubek",19]
["Počet trubek celkem",275]
["Počet trubek ve stř.řadě",19]
["Rel.diference při obvodu",0.5]
["jako zlomek rozteče k vynechání u obvodu"]
[]
["Vykresli: Ctrl+K;   Smaž: Ctrl+M;  Zadej vynechání řad: Ctrl+U"]

{"sheet":"DisData","index":8,"n_rows":92,"n_cols":6,"rows_kept":92,"cut":false,"hidden":false,"merged":[]}
["Látka","K","pK","typ","t (°C)","Vzorec"]
["Amoniak",1.5E-5,{"$f":"-LOG10(B2)","v":4.8239087409443187},-1,25,"NH3"]
["Anilin",3.8300000000000002E-10,{"$f":"-LOG10(B3)","v":9.416801226031378},-1,25,"C2H5NH2"]
["Anilinium",{"$f":"10^-C4","v":2.3988329190194856E-5},4.62,-1,25,"C2H5NH3 +"]
["Benzylamin",2.34E-5,{"$f":"-LOG10(B5)","v":4.6307841425898575},-1,25,"C6H13N"]
["Chinolin",6.3E-10,9.2006594505464179,-1,25,"C9H7N"]
["Difenylamin",6.8999999999999996E-14,13.161150909262744,-1,25,"C4H10NH"]
["Ethylamin",4.2999999999999999E-4,3.3665315444204134,-1,25,"C2H5NH2"]
["Trietylamin",5.6400000000000005E-4,3.2487208960166578,-1,25,"C6H15N"]
["Methylamin",4.3800000000000002E-4,3.3585258894959003,-1,25,"CH3NH2"]
["Dimethylamin",5.1999999999999995E-4,3.283996656365201,-1,25,"C2H7N"]
["Trimethylamin",5.4500000000000003E-5,4.2636034977233574,-1,25,"C3H9N"]
["Propylamin",3.4200000000000002E-4,3.4659738939438651,-1,25,"C3H7NH2"]
["Piperidin",1.34E-3,2.8728952016351923,-1,25,"C5H11N1"]
["Pyridin ",1.7100000000000001E-9,8.7670038896078459,-1,20,"C5H5N"]
["Adipová (K1)",3.6999999999999998E-5,4.431798275933005,2,25,"C6H10O4"]
["Adipová (K2)",3.2200000000000001E-6,5.4921441283041688,2,25,"C6H10O4"]
["Akrylová",5.5000000000000002E-5,4.2596373105057559,1,25,"C3H4O2"]
["Aminooctová (K1)",{"$f":"10^-C19","v":4.4668359215096279E-3},2.35,2,25,"C2H5NO2"]
["Aminooctová (K2)",{"$f":"10^-C20","v":1.6982436524617399E-10},9.77,2,25,"C2H5NO2"]
["Benzoová",6.2899999999999997E-5,{"$f":"-LOG10(B21)","v":4.2013493545547309},1,25,"C7H6O2"]
["Boritá",{"$f":"10^-C22","v":5.7942869642687995E-10},9.2370000000000001,1,25,"HB02"]
["o-Brombenzoová",1.4E-3,{"$f":"-LOG10(B23)","v":2.8538719643217618},1,25,"C7H5O2Br"]
["m-Brombenzoová",1.55E-4,3.8096683018297086,1,25,"C7H5O2Br"]
["p-Brombenzoová",9.9500000000000006E-5,4.0021769192542749,1,25,"C7H5O2Br"]
["o-Bromfenyloctová",6.4900000000000005E-5,4.1877553031996309,1,25,"C6H7O2Br"]
["Citronová (K1)",8.5999999999999998E-4,3.0655015487564321,3,25,"C6H8O7"]
["Citronová (K2)",1.73E-5,4.761953896871205,3,25,"C6H8O7"]
["Citronová (K3)",4.0199999999999996E-6,5.3957739469155301,3,25,"C6H8O7"]
["Dichloroctová",5.5E-2,1.2596373105057561,1,25,"C2H2O2Cl2"]
["Diethylamonium",{"$f":"10^-C31","v":1.0471285480508978E-11},10.98,-1,25,"C4H12N +"]
["Dusitá",4.4999999999999999E-4,{"$f":"-LOG10(B32)","v":3.3467874862246565},1,25,"HNO2"]
["Fenyloctová",4.88E-5,{"$f":"-LOG10(B33)","v":4.3115801779972891},1,25,"C8H8O2"]
["Fenol",1.2E-10,{"$f":"-LOG10(B34)","v":9.9208187539523749},1,25,"C6H5OH"]
["Fluorovodíková",{"$f":"10^-C35","v":6.7608297539198121E-4},3.17,1,25,"HF"]
["Fosforečná (K1)",7.0899999999999999E-3,{"$f":"-LOG10(B36)","v":2.1493537648169334},3,20,"H3PO4"]
["Fosforečná (K2)",9.9999999999999995E-8,7,3,20,"H3PO4"]
["Fosforečná (K3)",4.4999999999999998E-12,11.346787486224656,3,20,"H3PO4"]
["Fosforitá (K1)",0.03,1.5228787452803376,2,25,"H3PO3"]
["Fosforitá (K2)",1.6E-7,6.795880017344075,2,25,"H3PO3"]
["Ftalová (K1)",1.1199999999999999E-3,2.9507819773298185,2,25,"C8H6O4"]
["Ftalová (K2)",3.9099999999999998E-6,5.4078232426041328,2,25,"C8H6O4"]
["Glutarová (K1)",4.5800000000000002E-5,4.3391345219961304,2,25,"C5H8O4"]
["Glutarová (K2)",3.98E-6,5.4001169279263124,2,25,"C5H8O4"]
["Hydrazinium",{"$f":"10^-C45","v":1.0232929922807522E-8},7.99,-1,25,"N2H4 +"]
["Hydroxid vápenatý",3.7399999999999998E-3,{"$f":"-LOG10(B46)","v":2.4271283977995197},-1,25,"Ca(OH)2"]
["Hydroxylamin",1.07E-8,{"$f":"-LOG10(B47)","v":7.9706162223147903},-1,20,"NH2OH"]
["Hydroxylamonium",{"$f":"10^-C48","v":1.0471285480508979E-6},5.98,-1,25,"NH4"]
["p-Hydroxybenzoová",2.62E-5,{"$f":"-LOG10(B49)","v":4.5816987086802543},1,25,"C7H6O3"]
["a-Hydroxypropionová",1.3799999999999999E-4,3.8601209135987635,1,25,"C3H6O3"]
["b-Hydroxypropionová",3.1099999999999997E-5,4.5072396109731629,1,25,"C3H6O3"]
["Chlorná",5.5999999999999999E-8,7.2518119729937993,1,25,"HClO"]
["o-Chlorbenzoová",1.1999999999999999E-3,2.9208187539523753,1,25,"C7H5O2Cl"]
["m-Chlorbenzoová",1.4999999999999999E-4,3.8239087409443187,1,25,"C7H5O2Cl"]
["p-Chlorbenzoová",1.03E-4,3.987162775294828,1,25,"C7H5O2Cl"]
["o-Chlorfenyloctová",8.6000000000000003E-5,4.0655015487564325,1,25,"C6H7O2Cl"]
["m-Chlorfenyloctová",7.2399999999999998E-5,4.1402614338028529,1,25,"C6H7O2Cl"]
["p-Chlorfenyloctová",6.4499999999999996E-5,4.1904402853647325,1,25,"C6H7O2Cl"]
["Chlorná",3.1E-8,7.5086383061657269,1,25,"HClO"]
["Jablečná (K1)",{"$f":"10^-C60","v":3.4833731503601138E-4},3.4580000000000002,2,25,"C4H6O5"]
["Jablečná (K2)",7.9983425500702645E-6,5.0970000000000004,2,25,"C4H6O5"]
["Jantarová (K1)",6.2086903423006328E-5,4.2069999999999999,2,25,"C4H6O4"]
["Jantarová (K2)",2.3120647901755902E-6,5.6360000000000001,2,25,"C4H6O4"]
["Jodičná",0.14190575216890922,0.84799999999999998,1,25,"HIO3"]
["Jodistá",2.8183829312644532E-2,1.55,1,25,"HIO4"]
["Kaprylová",1.2799999999999999E-5,{"$f":"-LOG10(B66)","v":4.8927900303521312},1,25,"C8H16O2"]
["Kyanovodík",4.8E-10,9.3187587626244124,1,20,"HCN"]
["Malonová (K1)",1.58E-3,2.8013429130455774,2,18,"C3H4O4"]
["Malonová (K2)",2.1600000000000001E-6,5.6655462488490693,2,18,"C3H4O4"]
["n-Máselná",1.52E-5,4.8181564120552274,1,25,"C4H8O2"]
["Isomáselná",1.42E-5,4.8477116556169433,1,25,"C4H8O2"]
["Mléčná",{"$f":"10^-C72","v":1.3740419750125126E-4},3.8620000000000001,1,25,"C3H6O3"]
["Monochloroctová",1.3600000000000001E-3,{"$f":"-LOG10(B73)","v":2.8664610916297826},1,25,"C2H3O2Cl"]
["Mravenčí",1.7699999999999999E-4,3.7520267336381936,1,25,"HCOOH"]
["Nitrooctová",5.4999999999999997E-3,2.2596373105057563,1,25,"C2H3O4N"]
["Octová",1.7499999999999998E-5,4.7569619513137056,1,25,"CH3COOH"]
["Pimelová (K1)",3.1900000000000003E-5,4.496209316942819,2,18,"C7H12O2"]
["Pimelová (K2)",3.7400000000000002E-6,5.4271283977995202,2,18,"C7H12O2"]
["Propionová",1.33E-5,4.8761483590329142,1,25,"C3H6O2"]
["Salicylová",1.0499999999999999E-3,2.9788107009300622,1,25,"C7H6O3"]
["Sírová (K1)",1000,-3,2,25,"H2SO4"]
["Sírová (K2)",{"$f":"10^-C82","v":1.0232929922807535E-2},1.99,2,25,"H2SO4"]
["Siřičitá (K1)",{"$f":"10^-C83","v":1.7218685749860067E-2},1.764,2,25,"H2SO3"]
["Siřičitá (K2)",{"$f":"10^-C84","v":6.2373483548241788E-8},7.2050000000000001,2,25,"H2SO3"]
["Sulfan (K1)",9.0999999999999994E-8,{"$f":"-LOG10(B85)","v":7.0409586076789061},2,18,"H2S"]
["Sulfan (K2)",1.1999999999999999E-12,11.920818753952375,2,18,"H2S"]
["Šťavelová (K1)",6.5000000000000002E-2,1.1870866433571443,2,25,"C2O4H2"]
["Šťavelová (K2)",6.0999999999999999E-5,4.2146701649892329,2,25,"C2O4H2"]
["Uhličitá (K1)",4.4499999999999997E-7,6.351639989019068,2,25,"H2CO3"]
["Uhličitá (K2)",4.6900000000000001E-11,10.328827157284916,2,25,"H2CO3"]
["Vinná (K1)",9.2100000000000005E-4,3.0357403698031509,2,25,"C4H6O6"]
["Vinná (K2)",4.3099999999999997E-5,4.3655227298392685,2,25,"C4H6O6"]

{"sheet":"DisData1","index":9,"n_rows":51,"n_cols":5,"rows_kept":51,"cut":false,"hidden":false,"merged":[]}
["Látka","K","pK","m","n"]
["AgBr",4.9000000000000003E-13,{"$f":"-LOG10(B2)","v":12.309803919971486},1,1]
["AgCl",1.7800000000000001E-10,9.7495799976911055,1,1]
["AgI",8.3200000000000001E-17,16.079876673709276,1,1]
["AgNO2 ",6.0300000000000002E-4,3.2196826878598488,1,1]
["Ag2CO3 ",8.1300000000000003E-12,11.089909454405932,2,1]
["Ag2CrO4 ",2.4499999999999999E-12,11.610833915635467,2,1]
["Ag2S ",6.3099999999999995E-50,49.199970640755865,2,1]
["Ag3PO4 ",1.4499999999999999E-16,15.838631997765026,3,1]
["Al(OH)3 ",3.7200000000000001E-33,32.429457060118104,1,3]
["BaCO3 ",5.1300000000000003E-9,8.2898826348881833,1,1]
["BaCrO4 ",1.1800000000000001E-10,9.9281179926938741,1,1]
["Ba(IO3)2 ",1.55E-9,8.8096683018297082,1,2]
["BaSO4 ",1.0999999999999999E-10,9.9586073148417746,1,1]
["CaCO3 ",4.4699999999999997E-9,8.3496924768680643,1,1]
["CaC2O4.H2O",2.6299999999999998E-9,8.5800442515102429,1,1]
["CaF2 ",2.6899999999999999E-11,10.570247719997592,1,2]
["Ca(OH)2 ",3.72E-6,5.4294570601181027,1,2]
["CaSO4 ",9.1200000000000008E-6,5.0400051616715835,1,1]
["CdS",7.9400000000000002E-27,26.100179497572903,1,1]
["Co(OH)2 ",6.31E-16,15.199970640755867,1,2]
["Co(OH)3 ",3.1599999999999999E-41,40.500312917381599,1,3]
["CuBr",5.2499999999999999E-9,8.279840696594043,1,1]
["CuCl",1.86E-7,6.7304870557820839,1,1]
["CuI",1.1E-12,11.958607314841775,1,1]
["CuS",6.3100000000000004E-36,35.199970640755865,1,1]
["CuS2 ",2.5099999999999999E-48,47.600326278518963,1,2]
["Fe(OH)3 ",3.7500000000000003E-40,39.425968732272281,1,3]
["FeS",6.3100000000000003E-18,17.199970640755865,1,1]
["HgI2 ",3.1600000000000003E-29,28.500312917381596,1,2]
["HgO",3.0200000000000001E-26,25.51999305704285,1,1]
["HgS",1.58E-52,51.80134291304558,1,1]
["Hg2Cl2 ",1.3199999999999999E-18,17.87942606879415,1,1]
["MgCO3 ",2.3499999999999999E-8,{"$f":"-LOG10(B34)","v":7.6289321377282642},1,1]
["Mg(OH)2 ",1.1200000000000001E-11,10.950781977329818,1,2]
["Mn(OH)2 ",1.5800000000000001E-13,12.801342913045577,1,2]
["MnS (zelený)",2.5099999999999999E-13,12.600326278518962,1,1]
["PbCO3 ",7.4099999999999995E-14,13.130181792020672,1,1]
["PbCrO4 ",2.8200000000000001E-13,12.549750891680638,1,1]
["PbF2 ",2.6899999999999999E-8,7.5702477199975924,1,2]
["Pb(IO3)2 ",2.6299999999999999E-13,12.580044251510243,1,2]
["PbI2 ",7.0800000000000004E-9,8.1499667423102302,1,2]
["PbS",2.51E-27,26.600326278518963,1,1]
["PbSO4 ",1.15E-8,7.9393021596463882,1,1]
["Pb3(PO4)2 ",7.9400000000000008E-43,42.100179497572903,3,2]
["SnS",1E-25,25,1,1]
["SrCO3 ",1.0999999999999999E-10,9.9586073148417746,1,1]
["SrCrO4 ",2.19E-5,4.6595558851598815,1,1]
["SrSO4 ",3.4700000000000002E-7,6.459670525209126,1,1]
["TlCl",1.74E-4,3.7594507517174001,1,1]
["Zn(OH)2 ",3.1599999999999998E-17,16.500312917381596,1,2]

{"sheet":"DisPopis","index":10,"n_rows":156,"n_cols":8,"rows_kept":156,"cut":false,"hidden":false,"merged":[[56,0,56,1],[55,0,55,5],[99,2,100,2],[95,1,99,1],[100,1,101,1],[94,0,94,3],[94,6,94,7],[96,6,96,7],[98,6,98,7],[106,0,106,2],[108,0,108,3],[147,0,147,2],[155,0,155,2],[137,6,137,7],[137,0,137,3],[140,6,140,7],[142,6,142,7],[143,2,144,2],[138,0,139,0],[138,1,139,1],[138,2,139,2],[144,1,145,1]]}
["Disociace slabých kyselin"]
["Nepoužívá korekce aktivitními koeficienty!"]
["Jednosytné kyseliny:"]
[]
["Tyto slabé kyseliny - mezi které patří kyselina mléčná, vznikající jablečno-mléčnou fermentací, "]
["ve vodných roztocích, či kyselina octová, vznikající oxidací vína (octovatěním) "]
[" mají typický a charakteristický projev"]
["Na rozdíl od silných kyselin, které se prakticky 100 % disociují na své ionty a ve vodných roztocích"]
[" jsou přítomny pouze ve formě těchto iontů, slabé kyseliny disociují pouze částečně "]
["a ve vodných roztocích jsou tak přítomny ionty slabé kyseliny, ale i sama slabá kyseliny. "]
["Například kyselina octová "]
["                      neboli "]
["                                                         disociuje ve vodných roztocích na ionty "]
["a "]
["             tedy dle schematu"]
[]
[]
[]
[]
[]
["Zjednodušeně se toto rovnovážné schema zapisuje jako :"]
[]
["Tato rovnováha má svoji konstantu, která je neměnná pro danou slabou kyselinu, teplotu a typ"]
[" rozpouštědla. Konstanta disociace se vypočte z koncentrací jednotlivých komponent dle rovnice R0 - "]
[]
[]
[]
[", stanovení samotné hodnoty konstanty je náročná činnost a provádí se nepříklad potenciometricky - "]
["speciálními elektrodami, nebo vodivostně - měřením vodivost. "]
[]
["Pro určení obsahu jednotlivých iontů v roztoku se používá následující schema:"]
["1. Disociační konstanta vody pro rovnováhu "]
["se zapíše jako rovnice R1 - ",null,null," "]
["."]
[]
["2. Provede se výpočet materiální bilancejednotlivých forem iontů dle rovnice R2 - "]
[]
["Zde je vhodné upozornit na to, že každá slabá kyselina se v roztoku nachází ve formě nedisociované "]
["(nerozložené) formy a formy příslušných iontů. Součtem těchto forem určujeme celkovou "]
["koncentraci kyseliny HA."]
["3. Pro dokončení výpočtu potřebujeme ještě zajistit poslední rovnici a tou je rovnice elektroneutrality "]
["roztoku, které nám říká - že počet záporných nábojů je roven počtu kladných nábojů a tím je zajištěna "]
["rovnováha v oblesti elektrických nábojů jednotlivých iontů. Pokud by tomu tak nebylo, "]
["roztok by se choval jako jistá forma baterky."]
["Elektroneutralitní rovnováhu zapisujeme jako rovnici R3 - "]
[]
[]
["Řešením soustavy rovnic R0, R1, R2 a R3 dostaneme vztah popisující iontovou rovnováhu "]
["slabé kyseliny ve vodných roztocích. Tento vztah je následující rovnice:"]
[]
[]
[]
[]
[]
[null,null,null,null,null,null,null,"Vidíme, že iontová rovnováha slabé kyseliny je dána charakterem rozpouštědla (Kw - voda), koncentrací kyseliny C a hodnotou její disociační konstanty K1 - která odráží její sílu, neboli schopnost uvolňovat do roztoku vodíkové ionty.Řešením této rovnice ur"]
["Upozorňujeme na tomto místě, že pH = -Log([H+]) !"]
[]
["Nyní můžeme, na základě těchto vztahů, dokázat - že obsah jednotlivých forem kyseliny HA, "]
["tedy HA a A- nezávisí na koncentraci samotné kyseliny, ale pouze na koncentraci "]
["vodíkových iontů H+, tedy pH a síle kyseliny definované hodnotou disociační konstanty K1."]
[]
[]
[]
[]
[]
[]
["Obsah HA v roztoku v % bude "]
[". Stejně postupujeme pro iont A- :"]
[]
[]
["Obsah HA v roztoku v % bude "]
["."]
[]
[]
[]
[]
[]
[]
[]
[]
[]
[]
[]
[]
[]
[]
[]
[]
[]
[]
[]
[]
["Disociace dvojsytných kyselin"]
[]
["Rovnováha disociačních stupňů",null,null,null,null,null,"Materiální Bilance"]
[]
["1.",null,null,null,null,null,"Elektroneutralitní bilance"]
[]
[null,null,null,null,null,null,"Rovnováha vody"]
[]
["2. "]
[]
[]
[]
[]
[]
["Výsledná rovnice k řešení rovnováhy"]
[]
["Obsah jednotlivých forem kyseliny"]
[]
[]
[]
[]
[]
[]
[]
[]
[]
[]
[]
[]
[]
[]
[]
[]
[]
[]
[]
[]
[]
[]
[]
[]
[]
[]
[]
["Trojsytné kyseliny"]
["Rovnováha disociačních stupňů",null,null,null,null,null,"Materiální Bilance"]
["1."]
[]
["2. ",null,null,null,null,null,"Elektroneutralitní bilance"]
[]
[null,null,null,null,null,null,"Rovnováha vody"]
[]
["3."]
[]
[]
["Výsledná rovnice k řešení rovnováhy"]
[]
[]
[]
[]
[]
[]
[]
["nebo polynomicky:"]